[Event "84th Annual Southwest Open"]
[Site "Irving"]
[Date "2018.09.03"]
[Round "9"]
[White "Green, Austen"]
[Black "Sanchez, Robert"]
[Result "1/2-1/2"]
[ECO "B00"]
[WhiteElo "2087"]
[BlackElo "1834"]
[Annotator "NA RC"]
[PlyCount "100"]
[EventDate "2018.08.31"]
[EventType "swiss"]
[EventCountry "USA"]
[SourceTitle "playchess.com"]
[Source "ChessBase"]
[SourceQuality "1"]
[TimeControl "5400+30"]

{[%evp 22,100,114,96,113,80,105,32767,32767,32767,32767,118,142,133,165,185,179,195,195,0,158,176,171,150,190,25,219,185,172,177,183,171,168,176,164,167,193,176,202,142,100,127,114,149,142,163,204,121,126,121,77,32767,192,159,206,-79,19,9,19,8,110,116,109,109,117,109,126,134,144,0,-8,0,0,-38,0,-39,-16,-11,0,-8,-8]} 1. e4 {[%emt 0:00:00]} Nc6 {[%emt 0:00:00]} 2. d4 {[%emt 0:00:00]} d5 {[%emt 0:00:00]} 3. e5 {[%emt 0:01:19]} Bf5 {[%emt 0:00:24]} 4. Be3 {[%emt 0:01:28]} e6 {[%emt 0:01:03]} 5. h4 {[%emt 0:02:56]} f6 {[%emt 0:05:07]} 6. g4 {[%emt 0:01:47]} Be4 {[%emt 0:01:07]} 7. f3 {[%emt 0:00:21]} Bg6 {[%emt 0:00:02]} 8. h5 {[%emt 0:00:18]} Bf7 {[%emt 0:00:07]} 9. f4 {[%emt 0:00:55]} fxe5 {[%emt 0:01:17]} 10. fxe5 {[%emt 0:00:19]} Be7 {[%emt 0:00:24]} 11. Nf3 {[%emt 0:04:13]} Qd7 {[%emt 0:07:39]} 12. c3 {[%emt 0:03:29]} O-O-O {[%emt 0:00:19]} 13. b4 {[%emt 0:00:28]} Kb8 {[%emt 0:00:20]} 14. Bb5 {[%emt 0:00:38]} Nh6 {[%emt 0:00:40]} 15. Rg1 {[%emt 0:01:01]} Rhf8 {[%emt 0:00:21]} 16. Nbd2 {[%emt 0:03:54]} Be8 {[%emt 0:05:55]} 17. Qb1 {[%emt 0:04:42]} Nxg4 {[%emt 0:01:39]} 18. Rxg4 {[%emt 0:00:19]} Bxh5 {[%emt 0:00:01] [#]} 19. Rg3 $1 {[%emt 0:00:43]} h6 {[%emt 0:04:59]} 20. Qh7 $2 {[%emt 0:02:08]} (20. Qb3 $18) 20... Rf7 $2 {[%emt 0:01:05]} (20... a6 $11 21. Ba4 g5) 21. O-O-O {[%emt 0:00:47]} Rdf8 {[%emt 0:00:43]} 22. Rf1 {[%emt 0:01:01]} a6 {[%emt 0:00:30] [#]} 23. Be2 $2 {[%emt 0:01:35]} (23. Ba4 $1 $18) 23... Na7 $2 {[%emt 0:02:35]} (23... a5 $11) 24. Rxg7 {[%emt 0:01:17]} Bxb4 {[%emt 0:00:23]} 25. Rxf7 {[%emt 0:01:29]} ({Much less strong is} 25. cxb4 $6 Rxg7 26. Qxh6 Bg4 $14) ({Inferior is} 25. Qxh6 Ba3+ 26. Kc2 Rxg7 $15) 25... Ba3+ {[%emt 0:00:26]} 26. Kb1 {[%emt 0:01:14]} Rxf7 {[%emt 0:00:37] [#]} 27. Qc2 $1 {[%emt 0:00:33]} Nb5 {[%emt 0:01:43]} 28. Ka1 {[%emt 0:02:11]} Qc6 {[%emt 0:00:57]} 29. Nb1 {[%emt 0:03:30]} ({Inferior is} 29. Bxh6 Bb4 $11) 29... Be7 {[%emt 0:00:37]} 30. Ng1 {[%emt 0:02:23]} Rxf1 {[%emt 0:00:39]} 31. Bxf1 {[%emt 0:02:24]} Bg4 {[%emt 0:00:41]} 32. Bh3 {[%emt 0:03:29]} Bh5 {[%emt 0:04:46]} 33. Ne2 {[%emt 0:01:05]} ({Jedoch nicht} 33. Bxh6 $6 Nxd4 34. Qd3 Nf5 $16) 33... Bf3 {[%emt 0:02:39]} (33... Bg5 $16 {is a better defense.}) 34. Bf1 {[%emt 0:05:00]} (34. Bxh6 $18 Be4 35. Qb3) 34... Be4 {[%emt 0:01:07]} 35. Qb3 {[%emt 0:01:31]} h5 {[%emt 0:01:57]} 36. Nf4 {[%emt 0:01:29]} Bg5 {[%emt 0:03:42] [#]} (36... Bxb1 $16 37. Bxb5 (37. Kxb1 Nxc3+ 38. Kb2 Na4+ 39. Ka1 Nb6 $16) 37... axb5) 37. a4 $1 {[%emt 0:03:10]} Na7 {[%emt 0:00:20]} 38. c4 $2 {[%emt 0:00:33]} ({White should try} 38. Nd2 $18) 38... Bxb1 {[%emt 0:01:38]} (38... Bxf4 $1 $15 39. Bxf4 Bxb1 40. cxd5 (40. Kxb1 dxc4 41. Qc2 Qf3 $17) 40... Bc2 41. dxc6 Bxb3 42. cxb7 Bxa4) 39. Kxb1 {[%emt 0:02:09]} dxc4 {[%emt 0:00:41]} 40. Qxc4 {[%emt 0:04:50]} Bxf4 {[%emt 0:07:48]} (40... Qf3 $1 $11 41. Qe2 (41. Nxe6 Qxe3 42. Qxc7+ Ka8 $11) 41... Qc6) 41. Qxc6 {[%emt 0:00:20]} Nxc6 {[%emt 0:00:02]} 42. Bxf4 {[%emt 0:00:15]} Nxd4 {[%emt 0:00:03]} 43. Bh3 {[%emt 0:00:31]} Kc8 {[%emt 0:00:49]} 44. Be3 {[%emt 0:00:13]} Nf5 {[%emt 0:00:15]} 45. Bxf5 {[%emt 0:00:12]} ({Better is} 45. Bf2 $16) 45... exf5 {[%emt 0:00:02]} 46. Kc2 {[%emt 0:00:15]} Kd7 {[%emt 0:00:22]} 47. Kd3 {[%emt 0:02:17]} Ke6 {[%emt 0:00:06]} 48. Bf4 {[%emt 0:00:11]} Kd5 {[%emt 0:02:27]} 49. Bh2 {[%emt 0:02:24]} b5 {[%emt 0:01:30]} 50. axb5 {[%emt 0:06:13]} axb5 $11 {[%emt 0:42:26] Ke4+ [%clk 0:00:00] Kxe5+*} 1/2-1/2

[Event "84th Annual Southwest Open"]
[Site "Irving"]
[Date "2018.09.04"]
[Round "9"]
[White "Kumar, Naman"]
[Black "Huang, Max"]
[Result "1/2-1/2"]
[ECO "B41"]
[WhiteElo "1914"]
[BlackElo "1805"]
[Annotator "NA RC"]
[PlyCount "85"]
[EventDate "2018.08.31"]
[EventType "swiss"]
[EventCountry "USA"]
[SourceTitle "playchess.com"]
[Source "ChessBase"]
[SourceQuality "1"]
[TimeControl "5400+30"]

{[%evp 9,72,30,22,32767,32767,32767,32767,32767,32767,32767,32767,32767,32767,32767,32767,32767,32767,32767,32767,64,32767,32767,37,38,32767,7,26,8,46,40,45,-37,-44,-41,-24,-49,-43,-63,-54,-56,0,0,32767,72,96,32767,102,52,58,57,92,87,32767,32767,32767,190,161,0,0,0,32767,32767,0,0,0]} 1. e4 {[%emt 0:00:00]} c5 {[%emt 0:00:00]} 2. Nf3 {[%emt 0:00:00]} e6 {[%emt 0:00:00]} 3. d4 {[%emt 0:00:00]} cxd4 {[%emt 0:00:00]} 4. Nxd4 {[%emt 0:00:00]} a6 {[%emt 0:00:00]} 5. c4 {[%emt 0:00:01] LiveBook: 2734 Games} Qc7 {[%emt 0:00:00]} 6. Nc3 {[%emt 0:00:19]} d6 {[%emt 0:00:00]} 7. Be2 {[%emt 0:00:09]} Nf6 {[%emt 0:00:06]} 8. O-O {[%emt 0:00:24]} Nbd7 {[%emt 0:00:03]} 9. Be3 {[%emt 0:00:17]} b6 {[%emt 0:00:52]} 10. Qd2 {[%emt 0:00:21]} Bb7 {[%emt 0:02:18]} 11. f3 {[%emt 0:00:17]} Be7 {[%emt 0:00:14]} 12. Rfc1 {[%emt 0:00:21]} O-O {[%emt 0:00:43]} 13. a4 {[%emt 0:00:12] B41: Sizilianisch (Paulsen-Variante)} (13. b4 Rac8 14. Nb3 Qb8 15. Bf1 Rfe8 16. Qf2 Bd8 17. Na4 Ba8 18. c5 b5 19. Nc3 Bc7 20. g3 dxc5 21. Nxc5 Nxc5 22. bxc5 {1-0 (45) Nepomniachtchi,I (2729)-Ponkratov,P (2613) Riadh 2017}) 13... a5 {[%emt 0:02:17]} 14. Ndb5 {[%emt 0:11:12]} Qb8 {[%emt 0:00:30]} 15. Bf4 {[%emt 0:03:06]} Nc5 $146 {[%emt 0:11:05]} ({Vorgänger:} 15... Ne5 16. Rd1 Rd8 17. Kh1 Bc6 18. Qe3 h6 19. Qf2 Nfd7 20. Qg3 Kh7 {1-0 (45) Drabke,L (2441)-Jens,J (2375) Deizisau 2003}) 16. Qc2 {[%emt 0:07:30]} ({Wrong is} 16. Nxd6 $2 Nb3 $17) 16... Nfd7 {[%emt 0:04:27]} 17. Rd1 {[%emt 0:03:44]} Ne5 {[%emt 0:00:17]} 18. Be3 {[%emt 0:01:18]} Rd8 {[%emt 0:03:12]} 19. f4 {[%emt 0:05:35]} Nc6 {[%emt 0:00:51]} 20. Bxc5 {[%emt 0:02:51]} (20. Bf3 $14) 20... bxc5 {[%emt 0:02:35]} 21. Bf3 {[%emt 0:02:14]} Bf6 {[%emt 0:05:10]} 22. Kh1 {[%emt 0:06:24]} g6 {[%emt 0:07:18]} 23. Qd2 {[%emt 0:10:10]} Nd4 {[%emt 0:05:27]} 24. Nxd4 {[%emt 0:03:36]} Bxd4 {[%emt 0:00:35]} (24... cxd4 $15 25. Nb5 e5) 25. Nb5 {[%emt 0:02:54]} Bg7 {[%emt 0:03:40]} 26. Ra3 {[%emt 0:05:18]} Ra6 {[%emt 0:07:11]} 27. Rd3 {[%emt 0:02:04]} Bf8 {[%emt 0:03:27] [#]} 28. e5 $1 {[%emt 0:02:24]} Bxf3 {[%emt 0:00:09]} 29. gxf3 {[%emt 0:00:42]} Qb7 {[%emt 0:04:42]} 30. exd6 {[%emt 0:03:19]} Raxd6 {[%emt 0:10:23]} 31. Nxd6 {[%emt 0:01:05]} Rxd6 {[%emt 0:00:06]} 32. Rxd6 {[%emt 0:02:55]} Bxd6 {[%emt 0:00:06]} 33. Qxd6 $2 {[%emt 0:01:46]} (33. Kg2 $16 Be7 34. Qc3 (34. Qxa5 Qxb2+ 35. Rd2 Qb3 $18)) 33... Qxf3+ {[%emt 0:00:05]} 34. Kg1 {[%emt 0:00:05]} Qe3+ {[%emt 0:00:44]} 35. Kg2 {[%emt 0:00:21]} Qe2+ {[%emt 0:00:35]} 36. Kg3 {[%emt 0:00:42]} Qe3+ $11 {[%emt 0:00:06]} 37. Kg4 {[%emt 0:00:12]} Qe2+ {[%emt 0:29:16]} 38. Kg3 {[%emt 0:01:09]} Qe3+ {[%emt 0:00:00]} 39. Kh4 {[%emt 0:00:22]} Qf2+ {[%emt 0:00:00]} 40. Kg5 {[%emt 0:02:05]} h6+ {[%emt 0:00:00]} 41. Kf6 {[%emt 0:00:12]} Qh4+ {[%emt 0:00:00]} 42. Ke5 {[%emt 0:00:06]} Qh5+ {[%emt 0:00:00]} 43. Ke4 {[%emt 0:23:48]} 1/2-1/2